Cogmind - Beta 17 @@@ ROGUE MODE // 2026.07.23 @ 18:56:56 Player: lxealomych Result: Destroyed by G-34 Mercenary with Small Laser Performance ------------- Evolutions (0) 0 Regions Visited (1) 200 Robots Destroyed (8) 40 Value Destroyed (298) 298 Prototype IDs (0) 0 Alien Tech Used (0) 0 Bonus (0) 0 TOTAL SCORE: 538 Bonus ------- None Cogmind --------- Core Integrity 0/250 Matter 280/300 Energy 265/265 System Corruption 2% Temperature Cool (7) Movement Treading (160) Location -10/Materials Parts ------- > --- POWER (1) -------- Improved Ion Engine > --- PROPULSION (2) --- Light Treads Light Treads > --- UTILITY (2) ------ Large Storage Unit Visual Processing Unit > --- WEAPON (2) ------- Light Assault Rifle > --- INVENTORY (15) --- Improved Ion Engine Improved Ion Engine Light Treads Light Treads Flight Unit Flight Unit Large Storage Unit Sensor Array Terrain Scanner ECM Suite Maul Peak State ------------ > --- POWER ------------ Improved Ion Engine > --- PROPULSION ------- Light Treads Light Treads > --- UTILITY ---------- Small Storage Unit Visual Processing Unit > --- WEAPON ----------- Light Assault Rifle Light Assault Rifle > --- INVENTORY -------- Ion Engine Improved Ion Engine Improved Ion Engine Light Treads Light Treads Compact Wheel Compact Wheel Maul [Rating: 10] Favorites ----------- Power Improved Ion Engine Engine Improved Ion Engine Propulsion Light Treads Treads Light Treads Utility Visual Processing Unit Storage Small Storage Unit Processor Visual Processing Unit Weapon Light Assault Rifle Ballistic Gun Light Assault Rifle Build | -11 -10 ------- Run | Yrd Mat Slots Evolved . | . . Power . | . . Propulsion . | . . Utility . | . . Weapon . | . . Parts Attached 14 | 6 8 Power 3 | 1 2 Engine 3 | 1 2 Core . | . . Reactor . | . . Propulsion 4 | 2 2 Treads 4 | 2 2 Leg . | . . Wheel . | . . Hover . | . . Flight . | . . Utility 4 | 1 3 Device . | . . Storage 3 | 1 2 Processor 1 | . 1 Hackware . | . . Protection . | . . Artifact . | . . Weapon 3 | 2 1 Energy Gun . | . . Energy Cannon . | . . Ballistic Gun 3 | 2 1 Ballistic Cannon . | . . Launcher . | . . Special Weapon . | . . Impact Weapon . | . . Slashing Weapon . | . . Piercing Weapon . | . . Special Melee Weapon . | . . Unidentified Prototypes . | . . Parts Lost 5 | . 5 Power 1 | . 1 Propulsion 2 | . 2 Utility . | . . Weapon 2 | . 2 Highest Loss Streak 4 | . 4 To Critical Strikes . | . . Average Backups 8 | 3 8 Power 2 | . 2 Propulsion 4 | 2 4 Utility 1 | . 1 Weapon . | . . Tool/Special . | . . Unused Backups 15 | . 15 Power 2 | . 2 Propulsion 8 | . 8 Utility 4 | . 4 Weapon 1 | . 1 Tool/Special . | . . Average Slot Usage (%) 95 | . 95 Engine 13 | . 13 Treads 27 | . 27 Storage 14 | . 14 Processor 10 | . 10 Ballistic Gun 27 | . 27 Peak Build Rating 10 | 6 10 Average Rating 8 | 4 8 On Entrance 3 | . 6 Avg Prop Armor Cover (%) . | . . Naked Turns . | . . Heaviest Build 29 | 13 29 Greatest Support 40 | 40 40 Greatest Overweight (x) 2 | 1 2 Average Overweight (x) . | . . Largest Inventory Capacity 15 | 8 15 Average Capacity 9 | 7 10 Most Carried 11 | 6 11 Average Carried 8 | 4 8 Final Capacity 15 | 8 15 Final Carried 11 | 6 11 Class Distribution -------------------- 100% | Mutant Dominant Class ---------------- Mutant | -10/Materials Resources | -11 -10 ----------- Run | Yrd Mat Matter Collected 465 | 200 265 Remotely . | . . Salvage Created 373 | . 373 Parts 20 | . 20 Haulers Intercepted . | . . Recyclers Shooed . | . . Parts Field Recycled . | . . Retrieved Matter . | . . Parts Self-Destructed . | . . Prevented . | . . Parts Restored . | . . Kills | -11 -10 ------- Run | Yrd Mat Combat Hostiles Destroyed 8 | . 8 Guns 8 | . 8 Classes Destroyed 1 | . 1 Grunt 8 | . 8 Best Kill Streak 3 | . 3 Combat Bots Only 3 | . 3 Max Kills in Single Turn 1 | . 1 Gunslinging . | . . Exploded . | . . Melee . | . . Uniques/NPCs Destroyed . | . . Combat | -11 -10 -------- Run | Yrd Mat Hostile Shots Fired 100 | . 100 Missed 17 | . 17 Hits 83 | . 83 Projectile 83 | . 83 Critical Strikes 4 | . 4 Damage Taken 1005 | . 1005 Core 253 | . 253 Absorbed by Shields . | . . Core Remaining (%) 100 | 100 . Volleys Fired 56 | . 56 Largest 2 | . 2 Hottest 40 | . 40 Shots Fired 104 | . 104 Gun 104 | . 104 Cannon . | . . Launcher . | . . Special . | . . Kinetic 104 | . 104 Thermal . | . . Explosive . | . . Electromagnetic . | . . Robot Hit Streak 9 | . 9 Robot Miss Streak 3 | . 3 Penetration Max . | . . Secondary Targets 1 | . 1 Max Gunslinging Chain 1 | . 1 Shots Hit Robots 70 | . 70 Core Hits 22 | . 22 Critical Kills . | . . Critical Parts Destroyed . | . . Critical Strikes . | . . Melee Attacks . | . . Impact . | . . Slashing . | . . Piercing . | . . Sneak Attacks . | . . Combat Hostiles . | . . Follow-up Attacks . | . . Damage Inflicted 658 | . 658 Guns 658 | . 658 Cannons . | . . Explosions . | . . Melee . | . . Ramming . | . . Kinetic 658 | . 658 Thermal . | . . Explosive . | . . Electromagnetic . | . . Impact . | . . Slashing . | . . Piercing . | . . Highest Corruption 2 | . 2 Average Corruption 2 | . 2 Corruption Purged . | . . Corruption Blocked . | . . Effects 6 | . 6 Message Errors 2 | . 2 Matter Fused 2 | . 2 Heat Flow Errors 2 | . 2 Overload Shots . | . . Overflow Damage . | . . Projectiles . | . . Explosions . | . . Melee . | . . Knockbacks . | . . Impact . | . . Kinetic . | . . Secondary . | . . Self-Inflicted Damage . | . . Shots . | . . Rammed . | . . Targets Rammed . | . . Kicked . | . . Crushed . | . . Highest Temperature 204 | . 204 Average Temperature 60 | . 60 Received Heat Transfer 636 | . 636 Siege Activations . | . . Martial Activations . | . . Shielding Activations . | . . Robots Disrupted . | . . Combat Hostiles . | . . Robots Corrupted . | . . Combat Hostiles . | . . Parts Fried . | . . Impact Corruptions . | . . Robots Melted . | . . Combat Hostiles . | . . Parts Melted . | . . Heat Transferred . | . . Parts Sabotaged . | . . Parts Stolen . | . . Parts Stripped . | . . Power Chain Reactions . | . . Alert | -11 -10 ------- Run | Yrd Mat Maximum Alert Level . | . . Low Security (%) 100 | 100 100 Level 1 . | . . Level 2 . | . . Level 3 . | . . Level 4 . | . . Level 5 . | . . High Security . | . . Max Security . | . . Peak Influence 44 | . 44 Initial . | . . Average 4 | . 4 Influence Increases 207 | . 207 Destroy 0b10 Robot/C 160 | . 160 Destroy Leader 30 | . 30 Successful Hack 17 | . 17 Influence Decreases 190 | . 190 Time Decay 150 | . 150 Lost Part 40 | . 40 Squads Dispatched 3 | . 3 Investigation 2 | . 2 Extermination . | . . Reinforcement 1 | . 1 Assault . | . . Garrison . | . . Intercept . | . . Searches Triggered . | . . Construction Impeded . | . . Haulers Reinforced . | . . Active Scanning Responses . | . . Cargo Convoy Interrupts . | . . Stealth | -11 -10 --------- Run | Yrd Mat Distress Signals 2 | . 2 Communications Jammed . | . . Distress Signals . | . . Times Spotted 14 | . 14 Peak Tracking Total 6 | . 6 Tactical Retreats . | . . Traps | -11 -10 ------- Run | Yrd Mat Traps Triggered 2 | . 2 Indirectly . | . . Trap Hack Attempts . | . . Triggered . | . . Disarmed . | . . Reprogrammed . | . . Reused . | . . Traps Extracted . | . . Installed . | . . Triggered . | . . Machines | -11 -10 ---------- Run | Yrd Mat Machines Disabled . | . . Max in Single Turn . | . . Machines Repaired . | . . Machines Dismantled . | . . Machines Sabotaged . | . . Overloaded Fab Kills . | . . Hacking | -11 -10 --------- Run | Yrd Mat Machines Accessed 7 | . 7 Terminals 5 | . 5 Fabricators . | . . Repair Stations . | . . Recycling Units 2 | . 2 Scanalyzers . | . . Garrison Access . | . . Total Hacks 19 | . 19 Successful 6 | . 6 Failed 13 | . 13 Catastrophic 2 | . 2 Database Lockouts . | . . Manual 15 | . 15 Terminals 16 | . 16 Fabricators . | . . Repair Stations . | . . Recycling Units 3 | . 3 Scanalyzers . | . . Garrison Access . | . . Terminal Hacks 5 | . 5 Alert Level 1 | . 1 Locate Traps 1 | . 1 Hauler Manifests 1 | . 1 Zone Layout 2 | . 2 Fabricator Hacks . | . . Repair Station Hacks . | . . Recycling Unit Hacks 1 | . 1 Retrieve Components 1 | . 1 Scanalyzer . | . . Garrison Access Hacks . | . . Unauthorized Hacks . | . . Terminals . | . . Fabricators . | . . Repair Stations . | . . Recycling Units . | . . Scanalyzers . | . . Garrison Access . | . . Data Cores Recovered . | . . Used . | . . Hacking Detections 5 | . 5 Full Trace Events 1 | . 1 Feedback Events . | . . Feedback Blocked . | . . Robot Schematics Acquired . | . . Robots Built . | . . Authchips . | . . Time . | . . Total Robot Build Rating . | . . Part Schematics Acquired . | . . Parts Built . | . . Authchips . | . . Time . | . . Total Part Build Rating . | . . Part Studies Acquired . | . . Parts Repaired . | . . Time . | . . Parts Recycled . | . . Recycled Matter . | . . Retrieved Matter . | . . Retrieved Components 9 | . 9 Parts Scanalyzed . | . . Part Schematics Acquired . | . . Parts Damaged . | . . Bothacking | -11 -10 ------------ Run | Yrd Mat Used RIF Installer . | . . Robots Hacked . | . . Non-combat . | . . Combat . | . . Robot Hacks Applied . | . . Relay Couplers Released . | . . Fabnet Peak Effective % . | . . Robots Rewired . | . . Allies Hacked . | . . Hacks Repelled . | . . Allies | -11 -10 -------- Run | Yrd Mat Total Allies . | . . Largest Group . | . . Highest-Rated Group . | . . Highest-Rated Ally . | . . Total Orders . | . . Ally Attacks . | . . Total Damage . | . . Kills . | . . Allies Corrupted . | . . Allies Melted . | . . Intel | -11 -10 ------- Run | Yrd Mat Active Infowar (turns) 1238 | . 1238 Optics 1238 | . 1238 Robot Analysis Total . | . . Derelict Logs Recovered . | . . Drone Launches . | . . Drone Recoveries . | . . Exploration | -11 -10 ------------- Run | Yrd Mat Turns Passed 1816 | 112 1704 Spaces Moved 987 | 60 927 Core 14 | 5 9 Treads 973 | 55 918 Legs . | . . Wheels . | . . Hover . | . . Flight . | . . Fastest Speed 50 | 50 150 Average Speed 159 | 152 159 Slowest Speed 160 | 160 160 Overloaded Moves . | . . Propulsion Burnouts . | . . Robots Hopped . | . . Potential Cave-ins 1 | . 1 Cave-ins Triggered . | . . Exploration Rate (%) 52 | 5 99 Regions Visited 1 Branch Regions . Pre-discovered Areas . | . . Known Exits Taken . | . . Unknown Exits Taken 1 | 1 . Scrap Searched . | . . Spaces Dug . | . . Terrain Destroyed . | . . Melee . | . . Projectile . | . . AOE . | . . Terrain Rammed . | . . Walls Destroyed . | . . Machines Disabled . | . . Actions | -11 -10 --------- Run | Yrd Mat Total 1141 | 78 1063 Wait 59 | 7 52 Move 986 | 59 927 Hop . | . . Pick Up 19 | 6 13 Fast Attach 7 | 6 1 Attach 4 | . 4 Detach . | . . Swap 3 | . 3 Drop 7 | . 7 Fire 56 | . 56 Melee . | . . Ram . | . . Kick . | . . Crush . | . . Escape Stasis . | . . Rewire . | . . Trap . | . . Miscellaneous . | . . Route ------- -11/Scrapyard -10/Materials (discovered 5 exits: [*Mat x3] / [*Min] / [*Sub]) History --------- Turn | Location | Event 17 | -11/Scrapyard | Discovered new exit (range 15) 113 | -11/Scrapyard | Entered Materials 304 | -10/Materials | Build established: Mutant 481 | -10/Materials | Core integrity fell below 50% 511 | -10/Materials | Core integrity fell below 20% 545 | -10/Materials | Lost 4 parts (1p2n1w) 813 | -10/Materials | Derelicts attacked the area 936 | -10/Materials | Discovered new exit (range 12) 1040 | -10/Materials | Discovered new exit (range 6) 1290 | -10/Materials | Discovered new exit (range 16) 1433 | -10/Materials | Discovered new exit (range 18) 1679 | -10/Materials | Discovered new exit (range 9) 1817 | -10/Materials | Destroyed by G-34 Mercenary with Small Laser Last Messages --------------- >>Manifests Retrieving manifest data... Found 2 haulers: A-02 Transporter (Empty) A-02 Transporter (Empty) 01623_ Extracted 8 matter. 01627_ System corrupted: Matter fused (-7). 01633_ U-05 Engineer lays Concrete. 01635_ U-05 Engineer builds a Wall. 01639_ U-05 Engineer lays Concrete. 01679_ EXIT=FOUND 01706_ 9%HVCQHW/FSK0#DGEXZY98Y&|BP1JB4F 01722_ K-01 Serf cleans the Recycling Unit. 01747_ Connecting with Terminal... 01800_ ALERT: Suspicious activity at Terminal M008. Dispatching Investigation squad. 01803_ Lgt. Assault Rifle destroyed. 01812_ G-34 Mercenary destroyed. Map ----- +----------------------------------------------------+ | # #?????#! #?? | | +##############?????## ##?? | | #???????????????????# #??? | | #???????????????????# #??? | | #???????????????????# #??? | | #???????????????????# #??? | | #?????????########### #??? | | ^########### # #??? | | ^## # # #??? | | ##% # """ """ # #??? | | ## " # """ """ # #??? | | +#+## "" # """ """ # #??? | | ## "" # # #??? | | ## """ # + #??? | | ## "" # # #??? | | " ## """ #######+### ##?? | | T ## """ # #?? | | " ## """ + ! #?? | | ## " # #?? | | ##### ## #?? | | ????# !## """"" #?? | | ????######### """"" #?? | | ????????????# """"" ##? | | ????????????# """"" "#? | | ????????##### """"" T#? | | ???????##! ## """"" @"#? | | ???????#! """"" ##? | | ???????#! = #?? | | ???????# [%g #?? | | ???????#! ########+## < #?? | | ???????##! ## # #?? | | ????????##### """ ######?? | | ????????????# """ #??????? | | ????????????# """ #??????? | | ????????????# #??????? | | ????????????##########??????? | | | | | | | | | | | | | | | | | | | | | | | | | | | | | +----------------------------------------------------+ Best States ------------- Heat Dissipation 25 Energy Generation 12 Energy Capacity 265 Matter Stores 300 Matter Capacity 300 Sight Range 18 Terrain Scan Density 10 Evasion (%) 40 Recoil Reduction 2 Item Schematics ----------------- None Robot Schematics ------------------ None Fabricated ------------ Nothing Repaired ---------- Nothing Studied --------- None Alien Tech Used ----------------- None Achievements -------------- None Challenges ------------ None Game ------ Seed GunHoverField Manual? 0 Play Time 00:12:06 Cumulative 21.2 hours Start 2026.07.22 @ 19:34:09 End 2026.07.23 @ 18:56:56 Sessions 3 Manual Loads 0 Difficulty Rogue Special Mode None Game No. 23 Rogue 20 Adventurer 3 Explorer 0 Win Type - Total 0 Types 0/0/0/0/0/0/0/0/0/0 Lore% 10 Gallery% 23 Achievement% 19 Wizard Run 0 Options --------- Layout 0 ASCII 0 Keyboard 0 Movement Numpad Keybinds 0 Fullscreen 1 Font 18/SmallcapsGlow Map View 76x50 Zoom Use 0% Tactical HUD 1 Map Filters NONE Filters NONE Steam 1 RUN: 5ce9f18c-8847-4b30-a5f9-571f6c666102